Cogmind - Beta 16 @@@ ROGUE MODE // 2026.02.09 @ 13:40:37 Player: verv Result: Self-destructed Performance ------------- Evolutions (1) 500 Regions Visited (3) 600 Robots Destroyed (22) 110 Value Destroyed (459) 459 Prototype IDs (0) 0 Alien Tech Used (0) 0 Bonus (0) 0 TOTAL SCORE: 1669 Bonus ------- None Cogmind --------- Core Integrity 377/400 Matter 0/300 Energy 100/100 System Corruption 0% Temperature Cool (0) Movement Treading (240) Ox1 Location -9/Materials Parts ------- > --- POWER (1) -------- (None) > --- PROPULSION (2) --- Light Treads > --- UTILITY (4) ------ Large Storage Unit Signal Interpreter > --- WEAPON (2) ------- Light Assault Rifle > --- INVENTORY (15) --- Sensor Array Improved Targeting Computer Improved Targeting Computer Light Armor Plating Light Cannon Rocket Launcher Rocket Launcher Plasma Cutter Plasma Cutter Peak State ------------ > --- POWER ------------ Ion Engine > --- PROPULSION ------- Light Treads Light Treads > --- UTILITY ---------- Small Storage Unit Improved Targeting Computer > --- WEAPON ----------- Rocket Launcher Rocket Launcher > --- INVENTORY -------- Sensor Array Improved Targeting Computer Improved Targeting Computer Light Armor Plating EM Pulse Gun Particle Gun Light Assault Rifle Grenade Launcher [Rating: 11] Favorites ----------- Power Ion Engine Engine Ion Engine Propulsion Light Treads Treads Light Treads Hover Unit Hover Unit Utility Improved Targeting Computer Storage Large Storage Unit Processor Improved Targeting Computer Weapon Light Assault Rifle Energy Gun EM Pulse Gun Ballistic Gun Light Assault Rifle Ballistic Cannon Light Cannon Launcher Rocket Launcher Build | -11 -10 -10 -9 ------- Run | Yrd Mat Min Mat Slots Evolved 2 | . . . 2 Power . | . . . . Propulsion . | . . . . Utility 2 | . . . 2 Weapon . | . . . . Parts Attached 18 | 6 10 1 1 Power 2 | 1 1 . . Engine 2 | 1 1 . . Core . | . . . . Reactor . | . . . . Propulsion 4 | 2 1 . 1 Treads 3 | 2 1 . . Leg . | . . . . Wheel . | . . . . Hover 1 | . . . 1 Flight . | . . . . Utility 6 | 1 4 1 . Device . | . . . . Storage 4 | 1 3 . . Processor 2 | . 1 1 . Hackware . | . . . . Protection . | . . . . Artifact . | . . . . Weapon 6 | 2 4 . . Energy Gun 1 | 1 . . . Energy Cannon . | . . . . Ballistic Gun 1 | 1 . . . Ballistic Cannon 1 | . 1 . . Launcher 3 | . 3 . . Special Weapon . | . . . . Impact Weapon . | . . . . Slashing Weapon . | . . . . Piercing Weapon . | . . . . Special Melee Weapon . | . . . . Unidentified Prototypes . | . . . . Parts Lost 4 | . 3 1 . Power 1 | . 1 . . Propulsion 2 | . 1 1 . Utility . | . . . . Weapon 1 | . 1 . . Highest Loss Streak 2 | . 2 1 . To Critical Strikes . | . . . . Average Backups 7 | 1 8 6 6 Power . | . . . . Propulsion . | . . . . Utility 4 | . 5 4 4 Weapon 2 | . 3 2 2 Tool/Special . | . . . . Unused Backups 6 | . 2 . 4 Power . | . . . . Propulsion . | . . . . Utility 4 | . . . 4 Weapon 2 | . 2 . . Tool/Special . | . . . . Average Slot Usage (%) 87 | . 92 81 53 Engine 8 | . 10 . . Treads 23 | . 25 24 11 Storage 13 | . 14 14 11 Processor 13 | . 13 14 11 Energy Gun 2 | . 3 . . Ballistic Gun 9 | . 9 14 11 Ballistic Cannon 6 | . 7 7 . Launcher 7 | . 7 6 8 Peak Build Rating 11 | 6 11 9 7 Average Rating 8 | 4 8 7 5 On Entrance 5 | . 6 8 6 Avg Prop Armor Cover (%) 14 | . . . 14 Naked Turns . | . . . . Heaviest Build 93 | 11 93 25 25 Greatest Support 40 | 40 40 40 20 Greatest Overweight (x) 4 | . 4 1 4 Average Overweight (x) . | . . . 1 Largest Inventory Capacity 25 | 8 25 15 15 Average Capacity 14 | 7 14 15 15 Most Carried 11 | 5 11 7 9 Average Carried 7 | . 8 6 6 Final Capacity 15 | 8 15 15 15 Final Carried 9 | . 7 6 9 Class Distribution -------------------- 100% | Mutant Dominant Class ---------------- Mutant | -10/Materials Mutant | -10/Mines Mutant | -9/Materials Resources | -11 -10 -10 -9 ----------- Run | Yrd Mat Min Mat Matter Collected 403 | 147 229 27 . Remotely . | . . . . Salvage Created 411 | . 381 30 . Parts 29 | . 25 4 . Haulers Intercepted . | . . . . Recyclers Shooed . | . . . . Parts Field Recycled . | . . . . Retrieved Matter . | . . . . Parts Self-Destructed . | . . . . Prevented . | . . . . Parts Restored . | . . . . Kills | -11 -10 -10 -9 ------- Run | Yrd Mat Min Mat Combat Hostiles Destroyed 19 | . 15 4 . Guns 5 | . 4 1 . Cannons 6 | . 4 2 . AOE 8 | . 7 1 . Classes Destroyed 4 | . 4 . . Recycler 1 | . 1 . . Watcher 2 | . 2 . . Swarmer 12 | . 9 3 . Grunt 7 | . 6 1 . Best Kill Streak 4 | . 4 3 . Combat Bots Only 3 | . 3 3 . Max Kills in Single Turn 2 | . 2 1 . Gunslinging . | . . . . Exploded 2 | . 2 1 . Melee . | . . . . Uniques/NPCs Destroyed . | . . . . Combat | -11 -10 -10 -9 -------- Run | Yrd Mat Min Mat Hostile Shots Fired 154 | . 113 31 10 Missed 52 | . 34 13 5 Hits 102 | . 79 18 5 Projectile 102 | . 79 18 5 Damage Taken 1024 | . 751 215 58 Core 199 | . 122 54 23 Absorbed by Shields . | . . . . Core Remaining (%) 64 | 100 . 29 . Volleys Fired 45 | . 35 10 . Largest 2 | . 2 2 . Hottest 66 | . 66 53 . Shots Fired 82 | . 62 20 . Gun 42 | . 32 10 . Cannon 24 | . 17 7 . Launcher 16 | . 13 3 . Special . | . . . . Kinetic 53 | . 36 17 . Thermal . | . . . . Explosive 16 | . 13 3 . Electromagnetic 13 | . 13 . . Robot Hit Streak 8 | . 6 8 . Robot Miss Streak 4 | . 4 2 . Penetration Max . | . . . . Secondary Targets . | . . . . Shots Hit Robots 43 | . 31 12 . Core Hits 31 | . 24 7 . Critical Kills . | . . . . Critical Parts Destroyed . | . . . . Critical Strikes . | . . . . Melee Attacks . | . . . . Impact . | . . . . Slashing . | . . . . Piercing . | . . . . Sneak Attacks . | . . . . Combat Hostiles . | . . . . Follow-up Attacks . | . . . . Damage Inflicted 1211 | . 890 321 . Guns 208 | . 172 36 . Cannons 282 | . 190 92 . Explosions 719 | . 526 193 . Melee . | . . . . Ramming 2 | . 2 . . Kinetic 386 | . 258 128 . Thermal . | . . . . Explosive 719 | . 526 193 . Electromagnetic 104 | . 104 . . Impact . | . . . . Slashing . | . . . . Piercing . | . . . . Highest Corruption . | . . . . Average Corruption . | . . . . Corruption Purged . | . . . . Corruption Blocked . | . . . . Overload Shots . | . . . . Overflow Damage 14 | . 11 3 . Projectiles 11 | . 11 . . Explosions 3 | . . 3 . Melee . | . . . . Knockbacks 3 | . 2 1 . Impact . | . . . . Kinetic 3 | . 2 1 . Secondary . | . . . . Self-Inflicted Damage 60 | . 60 . . Shots 4 | . 4 . . Rammed 1 | . 1 . . Targets Rammed 1 | . 1 . . Kicked . | . . . . Crushed . | . . . . Highest Temperature 42 | . 42 17 . Average Temperature 16 | . 17 6 . Received Heat Transfer 273 | . 150 93 30 Siege Activations . | . . . . Martial Activations . | . . . . Shielding Activations . | . . . . Robots Disrupted . | . . . . Combat Hostiles . | . . . . Robots Corrupted . | . . . . Combat Hostiles . | . . . . Parts Fried . | . . . . Impact Corruptions . | . . . . Robots Melted . | . . . . Combat Hostiles . | . . . . Parts Melted . | . . . . Heat Transferred . | . . . . Parts Sabotaged . | . . . . Parts Stolen . | . . . . Parts Stripped . | . . . . Power Chain Reactions . | . . . . Alert | -11 -10 -10 -9 ------- Run | Yrd Mat Min Mat Maximum Alert Level . | . . . . Low Security (%) 100 | 100 100 100 100 Level 1 . | . . . . Level 2 . | . . . . Level 3 . | . . . . Level 4 . | . . . . Level 5 . | . . . . High Security . | . . . . Max Security . | . . . . Peak Influence 149 | . 149 83 20 Initial 21 | . . 21 20 Average 58 | . 67 50 2 Influence Increases 653 | . 522 131 . Destroy 0b10 Robot/C 380 | . 300 80 . Destroy 0b10 Robot/NC 15 | . 15 . . Destroy Leader 74 | . 64 10 . Successful Hack 7 | . 7 . . Disable Machine 75 | . 60 15 . Destroy Structure 102 | . 76 26 . Influence Decreases 653 | . 468 133 52 Entered New Map 65 | . . 33 32 Time Decay 548 | . 438 90 20 Lost Part 40 | . 30 10 . Squads Dispatched 7 | . 3 . 4 Investigation 3 | . 2 . 1 Extermination . | . . . . Reinforcement 4 | . 1 . 3 Assault . | . . . . Garrison . | . . . . Intercept . | . . . . Searches Triggered . | . . . . Construction Impeded . | . . . . Haulers Reinforced . | . . . . Active Scanning Responses . | . . . . Cargo Convoy Interrupts . | . . . . Stealth | -11 -10 -10 -9 --------- Run | Yrd Mat Min Mat Distress Signals 2 | . . . 2 Communications Jammed . | . . . . Distress Signals . | . . . . Times Spotted 35 | . 27 5 3 Peak Tracking Total 4 | . 3 2 4 Tactical Retreats . | . . . . Traps | -11 -10 -10 -9 ------- Run | Yrd Mat Min Mat Traps Triggered 2 | . 1 . 1 Indirectly . | . . . . Trap Hack Attempts . | . . . . Triggered . | . . . . Disarmed . | . . . . Reprogrammed . | . . . . Reused . | . . . . Traps Extracted . | . . . . Installed . | . . . . Triggered . | . . . . Machines | -11 -10 -10 -9 ---------- Run | Yrd Mat Min Mat Machines Disabled 5 | . 4 1 . Max in Single Turn 1 | . 1 1 . Machines Repaired . | . . . . Machines Dismantled . | . . . . Machines Sabotaged . | . . . . Overloaded Fab Kills . | . . . . Hacking | -11 -10 -10 -9 --------- Run | Yrd Mat Min Mat Machines Accessed 5 | . 5 . . Terminals 3 | . 3 . . Fabricators . | . . . . Repair Stations 1 | . 1 . . Recycling Units 1 | . 1 . . Scanalyzers . | . . . . Garrison Access . | . . . . Total Hacks 7 | . 7 . . Successful 6 | . 6 . . Failed 1 | . 1 . . Catastrophic . | . . . . Database Lockouts . | . . . . Manual . | . . . . Terminals 4 | . 4 . . Fabricators . | . . . . Repair Stations 2 | . 2 . . Recycling Units 1 | . 1 . . Scanalyzers . | . . . . Garrison Access . | . . . . Terminal Hacks 4 | . 4 . . Record 3 | . 3 . . Registered Components 1 | . 1 . . Fabricator Hacks . | . . . . Repair Station Hacks 1 | . 1 . . Scan Component 1 | . 1 . . Recycling Unit Hacks 1 | . 1 . . Report Inventory 1 | . 1 . . Scanalyzer . | . . . . Garrison Access Hacks . | . . . . Unauthorized Hacks . | . . . . Terminals . | . . . . Fabricators . | . . . . Repair Stations . | . . . . Recycling Units . | . . . . Scanalyzers . | . . . . Garrison Access . | . . . . Data Cores Recovered . | . . . . Used . | . . . . Hacking Detections 3 | . 3 . . Full Trace Events . | . . . . Feedback Events . | . . . . Feedback Blocked . | . . . . Robot Schematics Acquired . | . . . . Robots Built . | . . . . Authchips . | . . . . Time . | . . . . Total Robot Build Rating . | . . . . Part Schematics Acquired . | . . . . Parts Built . | . . . . Authchips . | . . . . Time . | . . . . Total Part Build Rating . | . . . . Part Studies Acquired . | . . . . Parts Repaired . | . . . . Time . | . . . . Parts Recycled . | . . . . Recycled Matter . | . . . . Retrieved Matter . | . . . . Retrieved Components . | . . . . Parts Scanalyzed . | . . . . Part Schematics Acquired . | . . . . Parts Damaged . | . . . . Bothacking | -11 -10 -10 -9 ------------ Run | Yrd Mat Min Mat Used RIF Installer . | . . . . Robots Hacked . | . . . . Non-combat . | . . . . Combat . | . . . . Robot Hacks Applied . | . . . . Relay Couplers Released . | . . . . Fabnet Peak Effective % . | . . . . Robots Rewired . | . . . . Allies Hacked . | . . . . Hacks Repelled . | . . . . Allies | -11 -10 -10 -9 -------- Run | Yrd Mat Min Mat Total Allies . | . . . . Largest Group . | . . . . Highest-Rated Group . | . . . . Highest-Rated Ally . | . . . . Total Orders . | . . . . Ally Attacks . | . . . . Total Damage . | . . . . Kills . | . . . . Allies Corrupted . | . . . . Allies Melted . | . . . . Intel | -11 -10 -10 -9 ------- Run | Yrd Mat Min Mat Active Infowar (turns) . | . . . . Robot Analysis Total . | . . . . Derelict Logs Recovered . | . . . . Drone Launches . | . . . . Drone Recoveries . | . . . . Exploration | -11 -10 -10 -9 ------------- Run | Yrd Mat Min Mat Turns Passed 2174 | 43 1734 198 199 Spaces Moved 991 | 27 791 94 79 Core 10 | 10 . . . Treads 977 | 17 791 94 75 Legs . | . . . . Wheels . | . . . . Hover 4 | . . . 4 Flight . | . . . . Fastest Speed 50 | 50 160 160 240 Average Speed 190 | 119 189 176 244 Slowest Speed 480 | 160 480 240 320 Overloaded Moves . | . . . . Propulsion Burnouts . | . . . . Robots Hopped . | . . . . Potential Cave-ins . | . . . . Cave-ins Triggered . | . . . . Exploration Rate (%) 33 | 4 94 25 9 Regions Visited 3 Branch Regions 1 Pre-discovered Areas . | . . . . Known Exits Taken 1 | . . 1 . Unknown Exits Taken 2 | 1 1 . . Scrap Searched . | . . . . Spaces Dug . | . . . . Terrain Destroyed 129 | . 96 33 . Melee . | . . . . Projectile . | . . . . AOE 129 | . 96 33 . Terrain Rammed . | . . . . Walls Destroyed . | . . . . Machines Disabled . | . . . . Actions | -11 -10 -10 -9 --------- Run | Yrd Mat Min Mat Total 1201 | 38 969 108 86 Wait 101 | . 97 3 1 Move 988 | 26 790 93 79 Hop . | . . . . Pick Up 33 | 6 24 . 3 Fast Attach . | . . . . Attach 11 | 6 4 . 1 Detach 1 | . . . 1 Swap 12 | . 10 2 . Drop 9 | . 8 . 1 Fire 45 | . 35 10 . Melee . | . . . . Ram . | . . . . Kick . | . . . . Crush 1 | . 1 . . Escape Stasis . | . . . . Rewire . | . . . . Trap . | . . . . Miscellaneous . | . . . . Route ------- -11/Scrapyard -10/Materials (discovered 4 exits: *Mat x3 / [*Min]) -10/Mines -9/Materials History --------- Turn | Location | Event 2 | -11/Scrapyard | Discovered new exit (range 16) 44 | -11/Scrapyard | Entered Materials 300 | -10/Materials | Build established: Mutant 345 | -10/Materials | Discovered new exit (range 16) 489 | -10/Materials | Discovered new exit (range 10) 779 | -10/Materials | Discovered new exit (range 10) 1529 | -10/Materials | Discovered new exit (range 14) 1778 | -10/Materials | Entered Mines 1879 | -10/Mines | Discovered new exit (range 7) 1893 | -10/Mines | Identified exit to Materials 1927 | -10/Mines | Core integrity fell below 50% 1976 | -10/Mines | Entered Materials 1976 | -9/Materials | Evolved 2 slots: Utility x2 2175 | -9/Materials | Self-destructed Last Messages --------------- Connecting with Terminal... Dropped Hover Unit. O-16 Technician: "IFF HANDSHAKE FAILED. SECURING TERMINAL." K-01 Serf collects debris. ALERT: Hostiles spotted, dispatching reinforcements to Terminal M010. K-01 Serf collects debris. ALERT: Hostiles spotted, dispatching reinforcements to Terminal M001. K-01 Serf collects debris. ALERT: Hostiles spotted, dispatching reinforcements to Terminal M004. K-01 Serf collects debris. Acquired Plasma Cutter. W-16 Scout sends out distress signal. Triggered Alarm Trap. An alarm sounds. ALERT: Alarm triggered, dispatching investigation squad. Map ----- +----------------------------------------------------+ | ??????????? #??????????????????????????? | | ??????????? #??????????????????????????? | | ???????????? #??????????????????????????? | | ????????????# #??????????????????????????? | | ????????????# #??????????????????????????? | | ????????????# #??????????????????????????? | | ????????????# #??????????????????????????? | | ????????????# #??????????????????????????? | | ????????????# #??????????????????????????? | | ????????#####/## #??????????????????????????? | | ????????# # #??????????????????????????? | | ????????# # #??????????????????????????? | | ????????# + #??????????????????????????? | | ????????# | # #??????????????????????????? | | ????????# || # #??????????????????????????? | | ????????# || # #??????????????????????????? | | ????????######## #??????????????????????????? | | ???????????????# #??????????????????????????? | | ???????????????# ########???????????????????? | | ?????########### ## #???????????????????? | | ?????# #???????????????????? | | ?????# g " #???????????????????? | | ?????# #???????????????????? | | ?????## ############# #???????????????????? | | ??????# #???????????## ##???????????????????? | | ??????# #????????????#@ #????????????????????? | | ??????# #????????????+ #????????????????????? | | ??????# #????????????# #????????????????????? | | ??????# #????????????# #????????????????????? | | ??????# #????????????# #????????????????????? | | ??????# #????????????# #????????????????????? | | ??????# #????????????# #????????????????????? | | ???####+#####????????# #????????????????????? | | ???# #????????# ##???????????????????? | | ???# """ ######### w ???????????????????? | | ???# """ # T" ???????????????????? | | ???# """ # " #???????????????????? | | ???# + #???????????????????? | | ???# "" # #####| #???????????????????? | | ???# "T= # #????????##???????????????????? | | ???# "" #####?????????????????????????????? | | ???# !#?????????????????????????????????? | | ???##########?????????????????????????????????? | | ??????????????????????????????????????????????? | | ??????????????????????????????????????????????? | | ??????????????????????????????????????????????? | | ??????????????????????????????????????????????? | | | | | | | +----------------------------------------------------+ Best States ------------- Heat Dissipation 28 Energy Generation 10 Energy Capacity 250 Matter Stores 209 Matter Capacity 300 Sight Range 16 Terrain Scan Density 10 Evasion (%) 50 Targeting Accuracy 6 Recoil Reduction 2 Item Schematics ----------------- None Robot Schematics ------------------ None Fabricated ------------ Nothing Repaired ---------- Nothing Studied --------- None Alien Tech Used ----------------- None Achievements -------------- None Challenges ------------ None Game ------ Seed MissileHardenedEdition Manual? 0 Play Time 00:16:58 Cumulative 4.3 hours Start 2026.02.09 @ 13:13:37 End 2026.02.09 @ 13:40:37 Sessions 1 Manual Loads 0 Difficulty Rogue Special Mode None Game No. 11 Rogue 11 Adventurer 0 Explorer 0 Win Type - Total 0 Types 0/0/0/0/0/0/0/0/0/0 Lore% 5 Gallery% 8 Achievement% 8 Wizard Run 0 Options --------- Layout 1 ASCII 0 Keyboard 0 Movement Mouse Keybinds 0 Fullscreen 2 Font 32/SmallcapsGlow Map View 50x35 Zoom Use 0% Tactical HUD 0 Map Filters NONE Filters NONE Steam 1 RUN: 7f382433-6ca0-48a1-9452-735a52f4bced